Cogmind - Beta 13 @@@ ROGUE MODE // 2024.03.31 @ 07:25:08 Player: scrub Result: Destroyed self with Grenade Launcher Performance ------------- Evolutions (0) 0 Regions Visited (1) 200 Robots Destroyed (15) 75 Value Destroyed (338) 338 Prototype IDs (0) 0 Alien Tech Used (0) 0 Bonus (0) 0 TOTAL SCORE: 613 Bonus ------- None Cogmind --------- Core Integrity 0/250 Matter 280/300 Energy 100/100 System Corruption 1% Temperature Cool (0) Movement Walking (260) Ox2 Location -10/Materials Parts ------- > --- POWER (1) -------- (None) > --- PROPULSION (2) --- Aluminum Leg > --- UTILITY (2) ------ Large Storage Unit Sensor Array > --- WEAPON (2) ------- Grenade Launcher Heavy Hammer > --- INVENTORY (15) --- Ion Engine Heat Sink Large Storage Unit Medium Battery (150) Medium Matter Pod (8) Signal Interpreter Seismic Detector Grenade Launcher Mining Laser Peak State ------------ > --- POWER ------------ Ion Engine > --- PROPULSION ------- Hover Unit Hover Unit > --- UTILITY ---------- Large Storage Unit Medium Matter Pod > --- WEAPON ----------- Assault Rifle Light Assault Rifle > --- INVENTORY -------- Ion Engine Aluminum Leg Heat Sink Large Storage Unit Medium Battery Sensor Array Signal Interpreter Seismic Detector Grenade Launcher Mining Laser Hammer [Rating: 8] Favorites ----------- Power Ion Engine Engine Ion Engine Propulsion Hover Unit Leg Aluminum Leg Hover Unit Hover Unit Utility Large Storage Unit Device Sensor Array Storage Large Storage Unit Weapon Light Assault Rifle Ballistic Gun Light Assault Rifle Launcher Grenade Launcher Impact Weapon Heavy Hammer Build | -11 -10 ------- Run | Yrd Mat Slots Evolved . | . . Power . | . . Propulsion . | . . Utility . | . . Weapon . | . . Parts Attached 22 | 6 16 Power 2 | 1 1 Engine 2 | 1 1 Core . | . . Reactor . | . . Propulsion 8 | 2 6 Treads . | . . Leg 6 | 2 4 Wheel . | . . Hover 2 | . 2 Flight . | . . Utility 5 | 1 4 Device 3 | 1 2 Storage 2 | . 2 Processor . | . . Hackware . | . . Protection . | . . Artifact . | . . Weapon 7 | 2 5 Energy Gun . | . . Energy Cannon . | . . Ballistic Gun 4 | 2 2 Ballistic Cannon . | . . Launcher 2 | . 2 Special Weapon . | . . Impact Weapon 1 | . 1 Slashing Weapon . | . . Piercing Weapon . | . . Special Melee Weapon . | . . Unidentified Prototypes . | . . Parts Lost 5 | . 5 Power 1 | . 1 Propulsion 2 | . 2 Utility . | . . Weapon 2 | . 2 Highest Loss Streak 2 | . 2 To Critical Strikes . | . . Average Slot Usage (%) 91 | . 91 Engine 13 | . 13 Leg 11 | . 11 Hover 13 | . 13 Device 9 | . 9 Storage 15 | . 15 Ballistic Gun 22 | . 22 Launcher 2 | . 2 Impact Weapon 1 | . 1 Naked Turns . | . . Heaviest Build 32 | 7 32 Greatest Support 20 | 20 20 Greatest Overweight (x) 6 | . 6 Average Overweight (x) 1 | . 1 Largest Inventory Capacity 15 | 5 15 Average Capacity 13 | 5 14 Most Carried 12 | 2 12 Average Carried 7 | . 8 Final Capacity 15 | 5 15 Final Carried 9 | . 9 Class Distribution -------------------- 66% | Mutant 33% | Scavenger-Mutant Dominant Class ---------------- Mutant | -10/Materials Resources | -11 -10 ----------- Run | Yrd Mat Matter Collected 514 | 266 248 Remotely . | . . Salvage Created 386 | 33 353 Parts 32 | 3 29 Haulers Intercepted . | . . Recyclers Shooed . | . . Parts Field Recycled . | . . Retrieved Matter . | . . Parts Self-Destructed . | . . Prevented . | . . Kills | -11 -10 ------- Run | Yrd Mat Combat Hostiles Destroyed 13 | 1 12 Melee 1 | . 1 Guns 9 | 1 8 AOE 2 | . 2 Classes Destroyed 4 | 1 3 Worker 1 | . 1 Watcher 1 | . 1 Swarmer 6 | . 6 Grunt 7 | 1 6 Best Kill Streak 3 | 1 3 Combat Bots Only 3 | 1 3 Max Kills in Single Turn 1 | 1 1 Gunslinging . | . . Exploded 1 | . 1 Melee 1 | . 1 Uniques/NPCs Destroyed . | . . Combat | -11 -10 -------- Run | Yrd Mat Hostile Shots Fired 92 | 5 87 Missed 20 | . 20 Damage Taken 790 | 57 733 Core 256 | 33 223 Absorbed by Shields . | . . Core Remaining (%) 86 | 86 . Volleys Fired 54 | 4 50 Largest 2 | 2 2 Hottest 50 | 40 50 Shots Fired 102 | 8 94 Gun 97 | 8 89 Cannon . | . . Launcher 5 | . 5 Special . | . . Kinetic 97 | 8 89 Thermal . | . . Explosive 5 | . 5 Electromagnetic . | . . Robot Hit Streak 7 | 2 7 Robot Miss Streak 6 | 2 6 Penetration Max . | . . Secondary Targets 1 | . 1 Max Gunslinging Chain 1 | . 1 Shots Hit Robots 53 | 4 49 Core Hits 20 | 2 18 Critical Kills 1 | . 1 Critical Parts Destroyed . | . . Critical Strikes 1 | . 1 Destroy 1 | . 1 Melee Attacks 6 | . 6 Impact 6 | . 6 Slashing . | . . Piercing . | . . Sneak Attacks 1 | . 1 Combat Hostiles . | . . Follow-up Attacks . | . . Damage Inflicted 933 | 39 894 Guns 527 | 39 488 Cannons . | . . Explosions 121 | . 121 Melee 285 | . 285 Ramming . | . . Kinetic 527 | 39 488 Thermal . | . . Explosive 121 | . 121 Electromagnetic . | . . Impact 285 | . 285 Slashing . | . . Piercing . | . . Highest Corruption 1 | . 1 Average Corruption 1 | . 1 Corruption Purged . | . . Corruption Blocked . | . . Effects 3 | . 3 Message Errors 1 | . 1 Heat Flow Errors 1 | . 1 Energy Discharges 1 | . 1 Overload Shots . | . . Overflow Damage 128 | . 128 Projectiles . | . . Explosions 15 | . 15 Melee 113 | . 113 Knockbacks 1 | . 1 Impact 1 | . 1 Kinetic . | . . Secondary . | . . Self-Inflicted Damage 70 | . 70 Shots 2 | . 2 Rammed . | . . Targets Rammed . | . . Kicked . | . . Crushed . | . . Highest Temperature 106 | 12 106 Average Temperature 11 | 9 12 Received Heat Transfer 264 | 30 234 Siege Activations . | . . Robots Corrupted . | . . Combat Hostiles . | . . Parts Fried 1 | . 1 Impact Corruptions 6 | . 6 Robots Melted . | . . Combat Hostiles . | . . Parts Melted . | . . Heat Transferred . | . . Parts Sabotaged . | . . Parts Stolen . | . . Parts Stripped . | . . Power Chain Reactions . | . . Alert | -11 -10 ------- Run | Yrd Mat Peak Influence 187 | 20 187 Initial 13 | . 13 Average 53 | 3 57 Maximum Alert Level . | . . Low Security (%) 100 | 100 100 Level 1 . | . . Level 2 . | . . Level 3 . | . . Level 4 . | . . Level 5 . | . . High Security . | . . Max Security . | . . Squads Dispatched 4 | . 4 Investigation 2 | . 2 Extermination . | . . Reinforcement 2 | . 2 Assault . | . . Garrison . | . . Intercept . | . . Searches Triggered . | . . Construction Impeded . | . . Haulers Reinforced . | . . Active Scanning Responses . | . . Cargo Convoy Interrupts . | . . Stealth | -11 -10 --------- Run | Yrd Mat Distress Signals . | . . Communications Jammed . | . . Distress Signals . | . . Times Spotted 24 | 1 23 Peak Tracking Total 3 | 1 3 Tactical Retreats . | . . Traps | -11 -10 ------- Run | Yrd Mat Traps Triggered 5 | . 5 Indirectly . | . . Trap Hack Attempts . | . . Triggered . | . . Disarmed . | . . Reprogrammed . | . . Reused . | . . Traps Extracted . | . . Installed . | . . Triggered . | . . Machines | -11 -10 ---------- Run | Yrd Mat Machines Disabled 1 | . 1 Max in Single Turn 1 | . 1 Machines Repaired . | . . Machines Dismantled . | . . Machines Sabotaged . | . . Overloaded Fab Kills . | . . Hacking | -11 -10 --------- Run | Yrd Mat Machines Accessed 4 | . 4 Terminals 2 | . 2 Fabricators . | . . Repair Stations 1 | . 1 Recycling Units 1 | . 1 Scanalyzers . | . . Garrison Access . | . . Total Hacks 11 | . 11 Successful 9 | . 9 Failed 2 | . 2 Catastrophic . | . . Database Lockouts . | . . Manual . | . . Terminals 4 | . 4 Fabricators . | . . Repair Stations 3 | . 3 Recycling Units 4 | . 4 Scanalyzers . | . . Garrison Access . | . . Terminal Hacks 3 | . 3 Record 1 | . 1 Unreport Threat 1 | . 1 Zone Layout 1 | . 1 Fabricator Hacks . | . . Repair Station Hacks 2 | . 2 Scan Component 2 | . 2 Recycling Unit Hacks 4 | . 4 Recycle Component 1 | . 1 Process 1 | . 1 Retrieve Matter 2 | . 2 Scanalyzer . | . . Garrison Access Hacks . | . . Unauthorized Hacks . | . . Terminals . | . . Fabricators . | . . Repair Stations . | . . Recycling Units . | . . Scanalyzers . | . . Garrison Access . | . . Data Cores Recovered . | . . Used . | . . Hacking Detections 3 | . 3 Full Trace Events 2 | . 2 Feedback Events 1 | . 1 Corruption 1 | . 1 Feedback Blocked . | . . Robot Schematics Acquired . | . . Robots Built . | . . Authchips . | . . Time . | . . Total Robot Build Rating . | . . Part Schematics Acquired . | . . Parts Built . | . . Authchips . | . . Time . | . . Total Part Build Rating . | . . Parts Repaired . | . . Time . | . . Parts Recycled 1 | . 1 Recycled Matter 173 | . 173 Retrieved Matter 173 | . 173 Retrieved Components . | . . Parts Scanalyzed . | . . Part Schematics Acquired . | . . Parts Damaged . | . . Bothacking | -11 -10 ------------ Run | Yrd Mat Used RIF Installer . | . . Robots Hacked . | . . Non-combat . | . . Combat . | . . Robot Hacks Applied . | . . Relay Couplers Released . | . . Fabnet Peak Effective % . | . . Robots Rewired . | . . Allies Hacked . | . . Hacks Repelled . | . . Allies | -11 -10 -------- Run | Yrd Mat Total Allies . | . . Largest Group . | . . Highest-Rated Group . | . . Highest-Rated Ally . | . . Total Orders . | . . Ally Attacks . | . . Total Damage . | . . Kills . | . . Allies Corrupted . | . . Allies Melted . | . . Intel | -11 -10 ------- Run | Yrd Mat Robot Analysis Total . | . . Derelict Logs Recovered . | . . Drone Launches . | . . Drone Recoveries . | . . Exploration | -11 -10 ------------- Run | Yrd Mat Turns Passed 1344 | 92 1252 Spaces Moved 589 | 68 521 Core 22 | 17 5 Treads . | . . Legs 322 | 51 271 Wheels . | . . Hover 245 | . 245 Flight . | . . Fastest Speed 50 | 50 120 Average Speed 189 | 102 201 Slowest Speed 360 | 120 360 Overloaded Moves . | . . Propulsion Burnouts . | . . Robots Hopped . | . . Cave-ins Triggered . | . . Exploration Rate (%) 45 | 6 85 Regions Visited 1 Branch Regions . Pre-discovered Areas . | . . Known Exits Taken . | . . Unknown Exits Taken 1 | 1 . Scrap Searched . | . . Spaces Dug . | . . Terrain Destroyed 30 | . 30 Melee . | . . Projectile . | . . AOE 30 | . 30 Terrain Rammed . | . . Walls Destroyed . | . . Machines Disabled . | . . Actions | -11 -10 --------- Run | Yrd Mat Total 712 | 83 629 Wait 11 | . 11 Move 588 | 67 521 Hop . | . . Pick Up 30 | 6 24 Fast Attach . | . . Attach 19 | 6 13 Detach . | . . Swap 3 | . 3 Drop 1 | . 1 Fire 54 | 4 50 Melee 6 | . 6 Ram . | . . Kick . | . . Crush . | . . Escape Stasis . | . . Rewire . | . . Trap . | . . Miscellaneous . | . . Route ------- -11/Scrapyard -10/Materials (discovered 3 exits: [*Mat x3]) History --------- Turn | Location | Event 2 | -11/Scrapyard | Met Revision 17 62 | -11/Scrapyard | Discovered new exit (range 8) 93 | -11/Scrapyard | Entered Materials 226 | -10/Materials | Discovered new exit (range 4) 313 | -10/Materials | Build established: Mutant 763 | -10/Materials | Discovered new exit (range 10) 956 | -10/Materials | Discovered new exit (range 5) 1074 | -10/Materials | Core integrity fell below 50% 1152 | -10/Materials | Build established: Scavenger-Mutant 1181 | -10/Materials | Core integrity fell below 20% 1345 | -10/Materials | Destroyed self with Grenade Launcher Last Messages --------------- K-01 Serf collects debris. Sneak attack on K-01 Serf. Destroyed Wheel. Destroyed Sml. Matter Pod. Destroyed Lgt. Ion Engine. K-01 Serf system corrupted by crushing effect. K-01 Serf knocked back. K-01 Serf system terminally corrupted. Wheel fried. Acquired 14 matter. Acquired 13 matter. UGTZ VWVMMA/MY HT8OZ:/8W8/ALY%X2T6AHQI90 System corrupted: Energy discharge (-60). Hover Unit destroyed. Destroyed Hover Unit. Ion Engine destroyed. Destroyed Ion Engine. Electrolysis Chamber disabled. G-34 Mercenary destroyed. Map ----- +----------------------------------------------------+ | | | | | | | | | | | | | | | | | | | | | | | | | | | | | | | | | | | | | | | | | | | ?????????????????????###????????????????????? | | ???????????########### #####???????????????? | | ##########?# | # #############???? | | # #?# * = #???? | | ??""""" #?# """ """ """ @ [ #???? | | #?""""" #?# """ """ "" #???? | | # """"" #?# """ """ "" * #########???? | | # """"" #?# ! #???????????? | | # """"" ################ #???????????? | | # """"" # ############ g #???????????? | | # """"" # +???????????? | | # # # #???????????? | | ####+##### ############ # #####???????????? | | #????????#####+##??????????????? | | #????????# T #??????????????? | | #????????# #??????????????? | | ## #######????????# """ #??????????????? | | ?# #??????????????# """ #??????????????? | | ?# #??????????????# """ #??????????????? | | ## #??????????????# #??????? ##????? | | ## ##########?????####+####### #????? | | !# # #??????# #????? | | # # #??????# #????? | | # # #??????# #????? | | # """#??????# ####### #????? | | #] ! """#??????# # #????###????? | | """ # """#??????# # #???????????? | | """"" # """#??????# # #???????????? | | """"" # """#??????# # ###?????????? | +----------------------------------------------------+ Best States ------------- Heat Dissipation 35 Energy Generation 10 Energy Capacity 250 Matter Stores 300 Matter Capacity 400 Sight Range 16 Robot Scan Range 14 Terrain Scan Density 10 Evasion (%) 55 Item Schematics ----------------- None Robot Schematics ------------------ None Fabricated ------------ Nothing Alien Tech Used ----------------- None Achievements -------------- Everything Is Under Control Storm Trooper Challenges ------------ None Game ------ Seed AnalysisShadeSpoofer Manual? 0 Play Time 00:20:21 Cumulative 0.6 hours Start 2024.03.31 @ 07:03:17 End 2024.03.31 @ 07:25:08 Sessions 1 Manual Loads 0 Difficulty Rogue Special Mode None Game No. 2 Rogue 2 Adventurer 0 Explorer 0 Win Type - Total 0 Types 0/0/0/0/0/0/0/0/0 Lore% 0 Gallery% 2 Achievement% 2 Wizard Run 0 Options --------- Layout 1 ASCII 0 Keyboard 0 Movement Numpad Keybinds 0 Fullscreen 2 Font 24/Smallcaps Map View 50x35 Zoom Use 0% Tactical HUD 0 Map Filters NONE Filters NONE Steam 1 RUN: bf8280cb-e12f-40ba-bfa3-271152e71b7b